lending/lending_fUSD_20240306
["ID","MTS","AMOUNT","RATE_DAILY","PERIOD"]
[317117425,1709686232943,-200.0,0.00018234,2]
[317117426,1709686232953,-200.0,0.00018234,2]
[317117428,1709686232962,-202.0,0.00018234,2]
[317117431,1709686232971,-201.0,0.00018234,2]
[317117433,1709686232984,-150.99,0.00018247,2]
[317117435,1709686232994,-26671.95842615,0.00018247,2]
[317117437,1709686233011,-7421.96157385,0.00018247,2]
[317117440,1709686233020,-150.0,0.00018247,2]
[317117441,1709686233029,-499.99,0.00018301,2]
[317117443,1709686233038,-3140.96,0.00018301,2]
[317117445,1709686233048,-224.99,0.00018301,2]
[317117447,1709686233058,-200.0,0.00018356,2]
[317117449,1709686233067,-158.5,0.00018452,2]
[317117451,1709686233079,-23900.0,0.00018512,2]
[317117453,1709686233088,-158.5,0.00018548,2]
[317117454,1709686233098,-158.5,0.00018644,2]
[317117455,1709686233107,-200.0,0.00018651,2]
[317117456,1709686233116,-158.5,0.0001874,2]
[317117457,1709686233125,-1131.15,0.00018791,2]
[317117458,1709686233135,-158.5,0.00018836,2]
[317117459,1709686233144,-201.0,0.00018919,2]
[317117460,1709686233154,-158.5,0.00018932,2]
[317117461,1709686233167,-500.0,0.00018974,2]
[317117462,1709686233177,-150.0,0.00018974,2]
[317117464,1709686233186,-153.55871884,0.00018999,2]
[317117466,1709686233195,-150.72031213,0.00019,2]
[317117468,1709686233205,-178.12,0.00019,2]
[317117470,1709686233214,-168.88,0.00019017,2]
[317117472,1709686233223,-158.5,0.00019028,2]
[317117474,1709686233232,-250.0,0.00019121,2]
[317117476,1709686233241,-158.5,0.00019125,2]
[317117478,1709686233252,-200.0,0.00019178,2]
[317117480,1709686233263,-250.0,0.00019178,2]
[317117482,1709686233272,-689.43,0.00019178,2]
[317117484,1709686233282,-158.5,0.00019221,2]
[317117486,1709686233292,-689.43,0.00019279,2]
[317117487,1709686233301,-158.5,0.00019317,2]
[317117489,1709686233310,-689.43,0.0001938,2]
[317117491,1709686233319,-158.5,0.00019413,2]
[317117493,1709686233329,-689.43,0.00019481,2]
[317117495,1709686233338,-480.0,0.00019481,2]
[317117498,1709686233348,-186.35,0.00019481,2]
[317117499,1709686233357,-178.12,0.00019548,2]
[317117501,1709686233366,-689.43,0.00019582,2]
[317117504,1709686233375,-201.0,0.00019604,3]
[317117506,1709686233384,-689.43,0.00019683,2]
[317117507,1709686233393,-7068.2021386,0.0001976,2]
[317117509,1709686233402,-689.43,0.00019784,2]
[317117512,1709686233414,-7068.2021386,0.00019788,2]
[317117513,1709686233423,-818.54,0.00019789,3]
[317117515,1709686233432,-289283.0,0.00019799,2]
[317117517,1709686233441,-4971.4373,0.000198,2]
[317117519,1709686233450,-7068.2021386,0.00019816,2]
[317117521,1709686233458,-7068.2021386,0.00019844,2]
[317117523,1709686233467,-7068.2021386,0.00019872,2]
[317117525,1709686233476,-689.43,0.00019885,2]
[317117527,1709686233485,-9073.92527145,0.0001989,2]
[317117529,1709686233494,-1235.84804304,0.00019898,2]
[317117530,1709686233503,-4580.1165,0.00019898,2]
[317117533,1709686233513,-1235.84804303,0.00019899,2]
[317117535,1709686233522,-208.028,0.00019899,2]
[317117537,1709686233531,-1000.0,0.00019899,2]
[317117538,1709686233541,-612.26070645,0.00019899,2]
[317117540,1709686233550,-1860.43239961,0.00019899,2]
[317117542,1709686233559,-7163.93142139,0.00019899,2]
[317117544,1709686233569,-182.76580396,0.00019899,2]
[317117545,1709686233578,-329.5721634,0.00019899,2]
[317117546,1709686233587,-155.74374837,0.00019899,2]
[317117547,1709686233597,-178.33040167,0.00019899,2]
[317117548,1709686233606,-557.98372572,0.00019899,2]
[317117549,1709686233615,-825.06145966,0.00019899,2]
[317117550,1709686233625,-612.26070645,0.000199,2]
[317117551,1709686233634,-1860.43239961,0.000199,2]
[317117552,1709686233644,-7163.93142137,0.000199,2]
[317117553,1709686233654,-182.76580395,0.000199,2]
[317117554,1709686233666,-329.5721634,0.000199,2]
[317117555,1709686233675,-557.9837257,0.000199,2]
[317117556,1709686233684,-825.06145965,0.000199,2]
[317117557,1709686233694,-4595.48145621,0.000199,2]
[317117558,1709686233703,-61778.75945114,0.000199,2]
[317117559,1709686233712,-7068.2021386,0.000199,2]
[317117560,1709686233722,-612.26070645,0.000199,2]
[317117561,1709686233732,-1860.43239961,0.000199,2]
[317117562,1709686233742,-7163.93142137,0.000199,2]
[317117563,1709686233751,-182.76580395,0.000199,2]
[317117564,1709686233760,-329.5721634,0.000199,2]
[317117565,1709686233770,-861.48391257,0.00019962,2]
[317117566,1709686233779,-500.0,0.00019972,2]
[317117567,1709686233789,-500.0,0.00019972,2]
[317117568,1709686233798,-500.0,0.00019972,2]
[317117569,1709686233807,-500.0,0.00019972,2]
[317117570,1709686233817,-1117.03,0.00019972,2]
[317117571,1709686233826,-1117.03,0.00019972,2]
[317117572,1709686233836,-612.63,0.00019972,2]
[317117573,1709686233846,-612.63,0.00019972,2]
[317117574,1709686233856,-500.0,0.00019972,2]
[317117575,1709686233866,-500.0,0.00019972,2]
[317117576,1709686233878,-500.0,0.00019972,2]
[317117577,1709686233888,-500.0,0.00019972,2]
[317117578,1709686233897,-1156.96,0.00019972,2]
[317117579,1709686233906,-1156.96,0.00019972,2]
[317117580,1709686233920,-9211.73,0.00019972,2]
[317117581,1709686233929,-9211.73,0.00019972,2]
[317117582,1709686233939,-500.0,0.00019972,2]
[317117583,1709686233949,-500.0,0.00019972,2]
[317117584,1709686233958,-500.0,0.00019972,2]
[317117585,1709686233967,-500.0,0.00019972,2]
[317117586,1709686233978,-500.0,0.00019972,2]
[317117587,1709686233988,-500.0,0.00019972,2]
[317117588,1709686233997,-500.0,0.00019972,2]
[317117589,1709686234007,-500.0,0.00019972,2]
[317117590,1709686234016,-500.0,0.00019972,2]
[317117591,1709686234025,-500.0,0.00019972,2]
[317117592,1709686234034,-500.0,0.00019972,2]
[317117593,1709686234044,-500.0,0.00019972,2]
[317117594,1709686234053,-1361.39,0.00019972,2]
[317117595,1709686234062,-1361.39,0.00019972,2]
[317117596,1709686234071,-500.0,0.00019972,2]
[317117597,1709686234081,-500.0,0.00019972,2]
[317117598,1709686234090,-500.0,0.00019972,2]
[317117599,1709686234100,-500.0,0.00019972,2]
[317117600,1709686234110,-500.0,0.00019972,2]
[317117601,1709686234119,-500.0,0.00019972,2]
[317117602,1709686234128,-561.3,0.00019972,2]
[317117603,1709686234138,-561.3,0.00019972,2]
[317117604,1709686234147,-836.71,0.00019972,2]
[317117605,1709686234157,-836.71,0.00019972,2]
[317117606,1709686234169,-500.0,0.00019972,2]
[317117607,1709686234179,-500.0,0.00019972,2]
[317117608,1709686234189,-500.0,0.00019972,2]
[317117609,1709686234200,-500.0,0.00019972,2]
[317117610,1709686234210,-500.0,0.00019972,2]
[317117611,1709686234220,-500.0,0.00019972,2]
[317117612,1709686234230,-500.0,0.00019972,2]
[317117613,1709686234240,-500.0,0.00019972,2]
[317117614,1709686234250,-3843.89,0.00019972,2]
[317117615,1709686234259,-3843.89,0.00019972,2]
[317117616,1709686234269,-500.0,0.00019972,2]
[317117617,1709686234279,-500.0,0.00019972,2]
[317117618,1709686234288,-10131.85,0.00019972,2]
[317117619,1709686234298,-10131.85,0.00019972,2]
[317117620,1709686234308,-500.0,0.00019972,2]
[317117621,1709686234317,-500.0,0.00019972,2]
[317117622,1709686234327,-500.0,0.00019972,2]
[317117623,1709686234337,-500.0,0.00019972,2]
[317117624,1709686234346,-15562.16,0.00019972,2]
[317117625,1709686234356,-15562.16,0.00019972,2]
[317117626,1709686234366,-500.0,0.00019972,2]
[317117627,1709686234376,-500.0,0.00019972,2]
[317117628,1709686234386,-500.0,0.00019972,2]
[317117629,1709686234395,-500.0,0.00019972,2]
[317117630,1709686234405,-500.0,0.00019972,2]
[317117631,1709686234420,-500.0,0.00019972,2]
[317117632,1709686234431,-500.0,0.00019972,2]
[317117633,1709686234441,-500.0,0.00019972,2]
[317117634,1709686234452,-500.0,0.00019972,2]
[317117635,1709686234465,-500.0,0.00019972,2]
[317117636,1709686234475,-500.0,0.00019972,2]
[317117637,1709686234485,-500.0,0.00019972,2]
[317117638,1709686234495,-500.0,0.00019972,2]
[317117639,1709686234506,-500.0,0.00019972,2]
[317117640,1709686234517,-500.0,0.00019972,2]
[317117641,1709686234527,-627.65,0.00019972,2]
[317117642,1709686234537,-627.65,0.00019972,2]
[317117643,1709686234546,-886.31,0.00019972,2]
[317117644,1709686234556,-886.31,0.00019972,2]
[317117645,1709686234566,-500.0,0.00019972,2]
[317117646,1709686234576,-500.0,0.00019972,2]
[317117647,1709686234586,-500.0,0.00019972,2]
[317117648,1709686234595,-500.0,0.00019972,2]
[317117649,1709686234605,-500.0,0.00019972,2]
[317117650,1709686234615,-500.0,0.00019972,2]
[317117651,1709686234624,-689.43,0.00019986,2]
[317117652,1709686234634,-861.48391257,0.00019989,2]
[317117653,1709686234644,-861.48391257,0.00019989,2]
[317117654,1709686234653,-702.73611936,0.00019997,2]
[317117655,1709686234667,-162.20825785,0.00019997,2]
[317117656,1709686234677,-155.0,0.00019997,2]
[317117657,1709686234687,-1595.4142672,0.00019997,2]
[317117658,1709686234697,-155.0,0.00019997,2]
[317117659,1709686234707,-339.97655067,0.00019997,2]
[317117660,1709686234718,-1057.72421204,0.00019998,2]
[317117661,1709686234728,-171.54337508,0.00019998,2]
[317117662,1709686234738,-251.5278521,0.00019998,2]
[317117663,1709686234747,-195.17219106,0.00019998,2]
[317117664,1709686234757,-155.0,0.00019998,2]
[317117665,1709686234766,-160.0,0.00019998,2]
[317117666,1709686234776,-2138.99822812,0.00019998,2]
[317117667,1709686234785,-290.53424772,0.00019998,2]
[317117668,1709686234795,-155.0,0.00019998,2]
[317117669,1709686234804,-155.0,0.00019998,2]
[317117670,1709686234814,-7233.87248029,0.00019998,2]
[317117671,1709686234823,-2109.48918101,0.00019998,2]
[317117672,1709686234832,-231.75259702,0.00019998,2]
[317117673,1709686234841,-546.43747178,0.00019998,2]
[317117674,1709686234851,-163.02067841,0.00019998,2]
[317117675,1709686234860,-165.55780859,0.00019998,2]
[317117676,1709686234869,-359.87127833,0.00019998,2]
[317117677,1709686234879,-263.73644602,0.00019998,2]
[317117678,1709686234888,-155.0,0.00019998,2]
[317117679,1709686234898,-309.51065796,0.00019998,3]
[317117680,1709686234907,-778.70244706,0.00019998,2]
[317117681,1709686234919,-150.99,0.00019998,2]
[317117682,1709686234928,-186.67920501,0.00019998,2]
[317117683,1709686234937,-692.80517199,0.00019998,2]
[317117684,1709686234946,-395.64452958,0.00019998,2]
[317117685,1709686234962,-500.0,0.00019998,2]
[317117686,1709686234971,-500.0,0.00019998,2]
[317117687,1709686234981,-500.0,0.00019998,2]
[317117688,1709686234990,-500.0,0.00019998,2]
[317117689,1709686235000,-500.0,0.00019998,2]
[317117690,1709686235010,-500.0,0.00019998,2]
[317117691,1709686235019,-500.0,0.00019998,2]
[317117692,1709686235029,-500.0,0.00019998,2]
[317117693,1709686235041,-500.0,0.00019998,2]
[317117694,1709686235051,-500.0,0.00019998,2]
[317117695,1709686235061,-500.0,0.00019998,2]
[317117696,1709686235070,-500.0,0.00019998,2]
[317117697,1709686235081,-500.0,0.00019998,2]
[317117698,1709686235090,-500.0,0.00019998,2]
[317117699,1709686235100,-500.0,0.00019998,2]
[317117700,1709686235109,-1117.03,0.00019998,2]
[317117701,1709686235119,-500.0,0.00019998,2]
[317117702,1709686235129,-1117.03,0.00019998,2]
[317117703,1709686235139,-1117.03,0.00019998,2]
[317117704,1709686235149,-1117.03,0.00019998,2]
[317117705,1709686235161,-1117.03,0.00019998,2]
[317117706,1709686235171,-1117.03,0.00019998,2]
[317117707,1709686235180,-1117.03,0.00019998,2]
[317117708,1709686235190,-1117.03,0.00019998,2]
[317117709,1709686235200,-612.63,0.00019998,2]
[317117710,1709686235211,-612.63,0.00019998,2]
[317117711,1709686235221,-612.63,0.00019998,2]
[317117712,1709686235231,-612.63,0.00019998,2]
[317117713,1709686235242,-612.63,0.00019998,2]
[317117714,1709686235252,-500.0,0.00019998,2]
[317117715,1709686235263,-612.63,0.00019998,2]
[317117716,1709686235273,-500.0,0.00019998,2]
[317117717,1709686235284,-612.63,0.00019998,2]
[317117718,1709686235295,-500.0,0.00019998,2]
[317117719,1709686235307,-612.63,0.00019998,2]
[317117720,1709686235318,-500.0,0.00019998,2]
[317117721,1709686235329,-500.0,0.00019998,2]
[317117722,1709686235340,-500.0,0.00019998,2]
[317117723,1709686235350,-500.0,0.00019998,2]
[317117724,1709686235361,-500.0,0.00019998,2]
[317117725,1709686235372,-1156.96,0.00019998,2]
[317117726,1709686235383,-1156.96,0.00019998,2]
[317117727,1709686235393,-1156.96,0.00019998,2]
[317117728,1709686235403,-1156.96,0.00019998,2]
[317117729,1709686235422,-1156.96,0.00019998,2]
[317117730,1709686235432,-1156.96,0.00019998,2]
[317117731,1709686235443,-1156.96,0.00019998,2]
[317117732,1709686235453,-1156.96,0.00019998,2]
[317117733,1709686235463,-9211.73,0.00019998,2]
[317117734,1709686235474,-9211.73,0.00019998,2]
[317117735,1709686235484,-9211.73,0.00019998,2]
[317117736,1709686235495,-9211.73,0.00019998,2]
[317117737,1709686235505,-9211.73,0.00019998,2]
[317117738,1709686235516,-9211.73,0.00019998,2]
[317117739,1709686235527,-9211.73,0.00019998,2]
[317117740,1709686235537,-9211.73,0.00019998,2]
[317117741,1709686235548,-500.0,0.00019998,2]
[317117742,1709686235559,-500.0,0.00019998,2]
[317117743,1709686235570,-500.0,0.00019998,2]
[317117744,1709686235581,-500.0,0.00019998,2]
[317117745,1709686235592,-500.0,0.00019998,2]
[317117746,1709686235603,-500.0,0.00019998,2]
[317117747,1709686235614,-500.0,0.00019998,2]
[317117748,1709686235624,-500.0,0.00019998,2]
[317117749,1709686235635,-500.0,0.00019998,2]
[317117750,1709686235646,-591.42,0.00019998,2]
[317117751,1709686235656,-500.0,0.00019998,2]
[317117752,1709686235668,-500.0,0.00019998,2]
[317117753,1709686235679,-500.0,0.00019998,2]
[317117754,1709686235689,-500.0,0.00019998,2]
[317117755,1709686235700,-500.0,0.00019998,2]
[317117756,1709686235711,-500.0,0.00019998,2]
[317117757,1709686235723,-500.0,0.00019998,2]
[317117758,1709686235734,-500.0,0.00019998,2]
[317117759,1709686235746,-433.34840415,0.00019998,2]
[317117760,1709686235756,-500.0,0.00019998,2]
[317117761,1709686235767,-500.0,0.00019998,2]
[317117762,1709686235777,-500.0,0.00019998,2]
[317117763,1709686235788,-500.0,0.00019998,2]
[317117764,1709686235798,-500.0,0.00019998,2]
[317117765,1709686235808,-500.0,0.00019998,2]
[317117766,1709686235819,-500.0,0.00019998,2]
[317117767,1709686235829,-500.0,0.00019998,2]
[317117768,1709686235839,-500.0,0.00019998,2]
[317117769,1709686235850,-500.0,0.00019998,2]
[317117770,1709686235860,-500.0,0.00019998,2]
[317117771,1709686235870,-500.0,0.00019998,2]
[317117772,1709686235881,-500.0,0.00019998,2]
[317117773,1709686235891,-500.0,0.00019998,2]
[317117774,1709686235901,-500.0,0.00019998,2]
[317117775,1709686235911,-500.0,0.00019998,2]
[317117776,1709686235933,-500.0,0.00019998,2]
[317117777,1709686235943,-366.9,0.00019998,2]
[317117778,1709686235953,-500.0,0.00019998,2]
[317117779,1709686235963,-1361.39,0.00019998,2]
[317117780,1709686235973,-1361.39,0.00019998,2]
[317117781,1709686235984,-1361.39,0.00019998,2]
[317117782,1709686235994,-1361.39,0.00019998,2]
[317117783,1709686236004,-1361.39,0.00019998,2]
[317117784,1709686236014,-1361.39,0.00019998,2]
[317117785,1709686236024,-1361.39,0.00019998,2]
[317117786,1709686236034,-500.0,0.00019998,2]
[317117787,1709686236044,-1361.39,0.00019998,2]
[317117788,1709686236054,-500.0,0.00019998,2]
[317117789,1709686236064,-500.0,0.00019998,2]
[317117790,1709686236074,-500.0,0.00019998,2]
[317117791,1709686236084,-500.0,0.00019998,2]
[317117792,1709686236095,-500.0,0.00019998,2]
[317117793,1709686236105,-500.0,0.00019998,2]
[317117794,1709686236115,-500.0,0.00019998,2]
[317117795,1709686236124,-500.0,0.00019998,2]
[317117796,1709686236135,-500.0,0.00019998,2]
[317117797,1709686236145,-301.9,0.00019998,2]
[317117798,1709686236155,-500.0,0.00019998,2]
[317117799,1709686236166,-500.0,0.00019998,2]
[317117800,1709686236176,-299.44,0.00019998,2]
[317117801,1709686236186,-561.3,0.00019998,2]
[317117802,1709686236197,-561.3,0.00019998,2]
[317117803,1709686236207,-561.3,0.00019998,2]
[317117804,1709686236218,-836.71,0.00019998,2]
[317117805,1709686236228,-561.3,0.00019998,2]
[317117806,1709686236238,-836.71,0.00019998,2]
[317117807,1709686236248,-561.3,0.00019998,2]
[317117808,1709686236258,-836.71,0.00019998,2]
[317117809,1709686236268,-561.3,0.00019998,2]
[317117810,1709686236278,-836.71,0.00019998,2]
[317117811,1709686236289,-561.3,0.00019998,2]
[317117812,1709686236299,-836.71,0.00019998,2]
[317117813,1709686236309,-561.3,0.00019998,2]
[317117814,1709686236319,-836.71,0.00019998,2]
[317117815,1709686236329,-836.71,0.00019998,2]
[317117816,1709686236339,-836.71,0.00019998,2]
[317117817,1709686236350,-500.0,0.00019998,2]
[317117818,1709686236361,-500.0,0.00019998,2]
[317117819,1709686236371,-500.0,0.00019998,2]
[317117820,1709686236381,-500.0,0.00019998,2]
[317117821,1709686236391,-500.0,0.00019998,2]
[317117822,1709686236402,-500.0,0.00019998,2]
[317117823,1709686236416,-500.0,0.00019998,2]
[317117824,1709686236427,-500.0,0.00019998,2]
[317117825,1709686236437,-500.0,0.00019998,2]
[317117826,1709686236449,-500.0,0.00019998,2]
[317117827,1709686236459,-500.0,0.00019998,2]
[317117828,1709686236468,-500.0,0.00019998,2]
[317117829,1709686236478,-500.0,0.00019998,2]
[317117830,1709686236488,-500.0,0.00019998,2]
[317117831,1709686236497,-500.0,0.00019998,2]
[317117832,1709686236507,-500.0,0.00019998,2]
[317117833,1709686236517,-500.0,0.00019998,2]
[317117834,1709686236527,-500.0,0.00019998,2]
[317117835,1709686236536,-500.0,0.00019998,2]
[317117836,1709686236545,-500.0,0.00019998,2]
[317117837,1709686236555,-500.0,0.00019998,2]
[317117838,1709686236565,-500.0,0.00019998,2]
[317117839,1709686236575,-500.0,0.00019998,2]
[317117840,1709686236585,-538.28,0.00019998,2]
[317117841,1709686236595,-3843.89,0.00019998,2]
[317117842,1709686236605,-3843.89,0.00019998,2]
[317117843,1709686236614,-3843.89,0.00019998,2]
[317117844,1709686236624,-3843.89,0.00019998,2]
[317117845,1709686236633,-3843.89,0.00019998,2]
[317117846,1709686236643,-3843.89,0.00019998,2]
[317117847,1709686236652,-3843.89,0.00019998,2]
[317117848,1709686236663,-3843.89,0.00019998,2]
[317117849,1709686236673,-500.0,0.00019998,2]
[317117850,1709686236682,-500.0,0.00019998,2]
[317117851,1709686236692,-500.0,0.00019998,2]
[317117852,1709686236701,-500.0,0.00019998,2]
[317117853,1709686236710,-500.0,0.00019998,2]
[317117854,1709686236720,-500.0,0.00019998,2]
[317117855,1709686236730,-500.0,0.00019998,2]
[317117856,1709686236739,-597.57054571,0.00019998,2]
[317117857,1709686236750,-10131.85,0.00019998,2]
[317117858,1709686236760,-10131.85,0.00019998,2]
[317117859,1709686236770,-10131.85,0.00019998,2]
[317117860,1709686236779,-500.0,0.00019998,2]
[317117861,1709686236992,-10131.85,0.00019998,2]
[317117862,1709686237002,-500.0,0.00019998,2]
[317117863,1709686237011,-10131.85,0.00019998,2]
[317117864,1709686237021,-501.78,0.00019998,2]
[317117865,1709686237030,-10131.85,0.00019998,2]
[317117866,1709686237040,-10131.85,0.00019998,2]
[317117867,1709686237049,-10131.85,0.00019998,2]
[317117868,1709686237058,-505.82,0.00019998,2]
[317117869,1709686237068,-15562.16,0.00019998,2]
[317117870,1709686237078,-15562.16,0.00019998,2]
[317117871,1709686237087,-500.0,0.00019998,2]
[317117872,1709686237097,-500.0,0.00019998,2]
[317117873,1709686237107,-500.0,0.00019998,2]
[317117874,1709686237116,-500.0,0.00019998,2]
[317117875,1709686237126,-500.0,0.00019998,2]
[317117876,1709686237136,-500.0,0.00019998,2]
[317117877,1709686237145,-500.55205474,0.00019998,2]
[317117878,1709686237155,-15562.16,0.00019998,2]
[317117879,1709686237166,-15562.16,0.00019998,2]
[317117880,1709686237176,-15562.16,0.00019998,2]
[317117881,1709686237185,-15562.16,0.00019998,2]
[317117882,1709686237195,-500.0,0.00019998,2]
[317117883,1709686237204,-15562.16,0.00019998,2]
[317117884,1709686237214,-15562.16,0.00019998,2]
[317117885,1709686237224,-500.0,0.00019998,2]
[317117886,1709686237233,-500.0,0.00019998,2]
[317117887,1709686237243,-500.0,0.00019998,2]
[317117888,1709686237252,-500.0,0.00019998,2]
[317117889,1709686237262,-500.0,0.00019998,2]
[317117890,1709686237272,-500.0,0.00019998,2]
[317117891,1709686237281,-619.95663854,0.00019998,2]
[317117892,1709686237291,-503.31628143,0.00019998,2]
[317117893,1709686237301,-500.0,0.00019998,2]
[317117894,1709686237310,-500.0,0.00019998,2]
[317117895,1709686237320,-500.0,0.00019998,2]
[317117896,1709686237330,-500.0,0.00019998,2]
[317117897,1709686237340,-500.0,0.00019998,2]
[317117898,1709686237349,-500.0,0.00019998,2]
[317117899,1709686237359,-500.0,0.00019998,2]
[317117900,1709686237368,-500.0,0.00019998,2]
[317117901,1709686237378,-500.0,0.00019998,2]
[317117902,1709686237388,-500.0,0.00019998,2]
[317117903,1709686237398,-223.05993813,0.00019998,2]
[317117904,1709686237407,-500.0,0.00019998,2]
[317117905,1709686237421,-500.0,0.00019998,2]
[317117906,1709686237430,-500.0,0.00019998,2]
[317117907,1709686237439,-500.0,0.00019998,2]
[317117908,1709686237449,-500.0,0.00019998,2]
[317117909,1709686237458,-500.0,0.00019998,2]
[317117910,1709686237467,-500.0,0.00019998,2]
[317117911,1709686237477,-500.0,0.00019998,2]
[317117912,1709686237486,-627.65,0.00019998,2]
[317117913,1709686237495,-500.0,0.00019998,2]
[317117914,1709686237505,-627.65,0.00019998,2]
[317117915,1709686237514,-500.0,0.00019998,2]
[317117916,1709686237523,-627.65,0.00019998,2]
[317117917,1709686237533,-627.65,0.00019998,2]
[317117918,1709686237542,-500.0,0.00019998,2]
[317117919,1709686237551,-627.65,0.00019998,2]
[317117920,1709686237561,-500.0,0.00019998,2]
[317117921,1709686237570,-500.0,0.00019998,2]
[317117922,1709686237579,-627.65,0.00019998,2]
[317117923,1709686237589,-500.0,0.00019998,2]
[317117924,1709686237598,-627.65,0.00019998,2]
[317117925,1709686237607,-886.31,0.00019998,2]
[317117926,1709686237617,-627.65,0.00019998,2]
[317117927,1709686237627,-886.31,0.00019998,2]
[317117928,1709686237636,-886.31,0.00019998,2]
[317117929,1709686237645,-886.31,0.00019998,2]
[317117930,1709686237654,-886.31,0.00019998,2]
[317117931,1709686237665,-886.31,0.00019998,2]
[317117932,1709686237674,-886.31,0.00019998,2]
[317117933,1709686237683,-886.31,0.00019998,2]
[317117934,1709686237693,-500.0,0.00019998,2]
[317117935,1709686237703,-500.0,0.00019998,2]
[317117936,1709686237712,-500.0,0.00019998,2]
[317117937,1709686237722,-500.0,0.00019998,2]
[317117938,1709686237732,-500.0,0.00019998,2]
[317117939,1709686237741,-11846.69611782,0.00019999,2]
[317117940,1709686237751,-10113.41137684,0.00019999,2]
[317117941,1709686237760,-319.45813224,0.00019999,5]
[317117942,1709686237769,-500.0,0.00019999,2]
[317117943,1709686237779,-500.0,0.00019999,2]
[317117944,1709686237788,-500.0,0.00019999,2]
[317117945,1709686237798,-500.0,0.00019999,2]
[317117946,1709686237807,-500.0,0.00019999,2]
[317117947,1709686237816,-500.0,0.00019999,2]
[317117948,1709686237826,-500.0,0.00019999,2]
[317117949,1709686237835,-500.0,0.00019999,2]
[317117950,1709686237844,-500.0,0.00019999,2]
[317117951,1709686237854,-500.0,0.00019999,2]
[317117952,1709686237863,-500.0,0.00019999,2]
[317117953,1709686237872,-500.0,0.00019999,2]
[317117954,1709686237881,-500.0,0.00019999,2]
[317117955,1709686237891,-500.0,0.00019999,2]
[317117956,1709686237900,-500.0,0.00019999,2]
[317117957,1709686237909,-500.0,0.00019999,2]
[317117958,1709686237919,-500.0,0.00019999,2]
[317117959,1709686237928,-500.0,0.00019999,2]
[317117960,1709686237937,-500.0,0.00019999,2]
[317117961,1709686237946,-500.0,0.00019999,2]
[317117962,1709686237958,-500.0,0.00019999,2]
[317117963,1709686237968,-500.0,0.00019999,2]
[317117964,1709686237978,-537.74,0.00019999,2]
[317117965,1709686237990,-500.0,0.00019999,2]
[317117966,1709686238000,-500.0,0.00019999,2]
[317117967,1709686238009,-500.0,0.00019999,2]
[317117968,1709686238019,-500.0,0.00019999,2]
[317117969,1709686238029,-500.0,0.00019999,2]
[317117970,1709686238038,-500.0,0.00019999,2]
[317117971,1709686238047,-500.0,0.00019999,2]
[317117973,1709686238056,-500.0,0.00019999,2]
[317117975,1709686238066,-618.65,0.00019999,2]
[317117976,1709686238075,-500.0,0.00019999,2]
[317117977,1709686238085,-500.0,0.00019999,2]
[317117978,1709686238095,-500.0,0.00019999,2]
[317117979,1709686238104,-500.0,0.00019999,2]
[317117980,1709686238113,-500.0,0.00019999,2]